bitfinex-derivatives/quotes_ETHF0:USTF0_20250817
["timestamp","ask_amount","ask_price","bid_price","bid_amount"]
[1755393151446,4.6473,4408.8,4408.7,0.6413]
[1755393152249,4.6473,4408.8,4408.7,0.4335]
[1755393154853,4.6473,4408.8,4408.7,0.6413]
[1755393155656,4.6473,4408.8,4407.9,0.2607]
[1755393155850,0.5894,4408.0,4407.9,0.4251]
[1755393156162,1.4395,4408.0,4407.9,1.1276]
[1755393157057,3.7972,4408.3,4408.2,0.5617]
[1755393157357,3.7972,4408.3,4408.2,1.1276]
[1755393157856,4.4066,4408.3,4408.2,1.1276]
[1755393158357,4.6473,4408.3,4408.2,1.1276]
[1755393158654,4.6473,4408.3,4408.2,1.0302]
[1755393159050,4.6473,4408.3,4408.2,1.1276]
[1755393160952,0.4297,4407.5,4407.4,0.4251]
[1755393161161,1.4395,4407.5,4407.4,1.1276]
[1755393161359,1.1988,4407.5,4407.4,1.1276]
[1755393165366,0.6674,4407.5,4407.4,1.1276]
[1755393166266,0.4088,4408.0,4407.9,0.1558]
[1755393166469,1.0277,4408.0,4407.9,1.1276]
[1755393166762,1.1988,4408.0,4407.9,0.6591]
[1755393167564,1.1988,4408.0,4407.9,1.1216]
[1755393168958,1.4393,4408.0,4407.9,1.1216]
[1755393171664,1.1988,4408.0,4407.9,1.1216]
[1755393172771,0.4233,4408.1,4408.0,0.866]
[1755393173068,0.6718,4408.1,4408.0,1.1282]
[1755393174070,1.0625,4408.1,4408.0,1.1282]
[1755393175272,0.2485,4408.1,4408.0,1.1282]
[1755393176362,0.2485,4408.2,4408.1,0.5609]
[1755393176569,0.4118,4408.2,4408.1,1.1306]
[1755393176871,1.2289,4408.2,4408.1,1.1306]
[1755393178378,3.2078,4408.8,4408.2,0.2555]
[1755393178671,1.4694,4408.5,4408.4,1.0331]
[1755393178875,1.4694,4408.5,4408.4,0.4208]
[1755393179576,0.5897,4407.9,4407.8,1.0331]
[1755393179771,1.2289,4407.9,4407.8,1.1306]
[1755393180970,1.0625,4407.9,4407.8,1.1306]
[1755393181571,0.6718,4407.9,4407.8,1.1306]
[1755393182179,0.2485,4407.9,4407.8,1.1306]
[1755393182472,1.4694,4408.7,4408.6,0.4208]
[1755393182670,2.06169459,4408.7,4408.6,0.2555]
[1755393183370,0.1664,4408.4,4408.3,0.4208]
[1755393183577,1.4694,4408.4,4408.3,0.4208]
[1755393185778,1.4694,4408.4,4408.3,0.6287]
[1755393185976,1.2289,4408.4,4408.3,1.0331]
[1755393186280,1.2289,4408.4,4408.3,1.1306]
[1755393186672,1.0625,4408.7,4408.6,0.5697]
[1755393186881,1.0625,4408.7,4408.6,1.1306]
[1755393187777,3.2078,4408.8,4408.6,1.1306]
[1755393187974,3.2078,4408.8,4408.6,0.5697]
[1755393188171,0.2485,4408.7,4408.6,0.5697]
[1755393188372,1.0625,4408.7,4408.6,0.5697]
[1755393188573,1.0625,4408.7,4408.6,1.1306]
[1755393190573,3.4563,4408.8,4408.7,1.1306]
[1755393190774,0.2485,4409.2,4408.7,0.5697]
[1755393190978,1.4694,4409.4,4409.3,1.1306]
[1755393192481,1.4694,4409.4,4409.3,0.4208]
[1755393192676,1.4694,4409.4,4409.3,1.1306]
[1755393192880,1.2289,4409.4,4409.3,1.1306]
[1755393193069,0.6718,4409.4,4409.3,1.1306]
[1755393193276,1.0625,4409.4,4409.3,1.1306]
[1755393193783,1.2289,4409.4,4409.3,1.1306]
[1755393202486,0.964,4409.4,4409.3,0.8751]
[1755393202789,1.4567,4409.4,4409.3,0.8751]
[1755393203087,1.4567,4409.4,4409.3,1.1172]
[1755393203980,1.2131,4409.4,4409.3,1.1172]
[1755393207190,1.0467,4409.4,4409.3,1.1172]
[1755393207887,1.2131,4409.4,4409.3,1.1172]
[1755393208385,0.2491,4409.8,4409.3,1.1172]
[1755393208594,3.2078,4409.9,4409.8,1.1278]
[1755393208886,3.2078,4410.4,4409.8,0.5807]
[1755393209085,0.6196,4410.1,4410.0,1.1278]
[1755393209278,1.0467,4410.1,4410.0,1.1278]
[1755393210190,1.2131,4410.1,4410.0,1.1278]
[1755393211590,1.4567,4410.1,4410.0,1.1278]
[1755393212482,1.2131,4410.1,4410.0,1.1278]
[1755393212987,1.4567,4410.1,4410.0,0.6172]
[1755393213489,3.2078,4410.4,4409.3,3.66108]
[1755393213490,1.4567,4409.4,4409.3,0.4095]
[1755393214685,1.4567,4409.4,4409.3,1.1278]
[1755393215590,1.2131,4409.4,4409.3,1.1278]
[1755393218688,0.6762,4409.4,4409.3,1.1278]
[1755393219389,1.0467,4409.4,4409.3,1.1278]
[1755393219591,0.2491,4409.4,4409.3,1.1278]
[1755393219793,0.2491,4409.8,4409.7,0.3232]
[1755393219993,0.2491,4409.8,4409.7,0.5807]
[1755393220384,1.0467,4409.8,4409.7,1.1278]
[1755393221595,1.2131,4409.8,4409.7,1.1278]
[1755393221789,1.0467,4409.8,4409.7,1.1278]
[1755393222095,0.6762,4409.8,4409.7,1.1278]
[1755393222997,1.0467,4409.8,4409.7,1.1278]
[1755393223492,1.0467,4409.8,4409.1,3.2078]
[1755393223493,0.786,4409.3,4409.2,0.4095]
[1755393223691,1.4567,4409.3,4409.2,0.4095]
[1755393224086,1.4567,4409.3,4409.2,0.6172]
[1755393225296,1.4567,4409.3,4409.2,0.8703]
[1755393229099,1.4567,4409.3,4409.2,1.1236]
[1755393233501,1.2131,4409.3,4409.2,1.1236]
[1755393234501,1.4567,4409.3,4409.2,1.1236]
[1755393235000,1.2131,4409.3,4409.2,1.1236]
[1755393236003,1.4604,4410.3,4410.2,0.1717]
[1755393236199,1.4604,4410.3,4410.2,0.6286]
[1755393236599,1.4604,4410.3,4410.2,0.9796]
[1755393237300,1.4604,4410.3,4410.2,0.8819]
[1755393239303,1.4604,4410.3,4410.2,0.6286]
[1755393240304,1.4604,4410.3,4410.2,0.7263]
[1755393240803,1.4604,4410.3,4410.2,0.6286]
[1755393241900,1.2168,4410.3,4410.2,1.1359]
[1755393242104,1.4604,4410.3,4410.2,1.1359]
[1755393242998,1.4604,4410.3,4410.2,1.0382]
[1755393243202,1.46437371,4410.3,4410.2,1.0382]
[1755393244304,1.46437371,4410.3,4410.2,1.1359]
[1755393246803,0.2436,4410.2,4409.7,0.2487]
[1755393247009,1.4604,4409.8,4409.7,0.7263]
[1755393247409,1.4604,4409.8,4409.7,0.1717]
[1755393247410,1.2168,4409.8,4409.7,0.1717]
[1755393247611,1.4604,4409.7,4409.6,3.3795]
[1755393247910,1.2168,4409.7,4409.6,4.095]
[1755393248111,0.2464,4409.8,4409.7,0.2487]
[1755393248310,1.2168,4409.8,4409.7,1.1359]
[1755393249209,1.4604,4409.8,4409.7,1.1359]
[1755393250811,1.2168,4409.8,4409.7,1.1359]
[1755393252805,0.00397371,4410.3,4410.2,0.1717]
[1755393253011,0.00397371,4410.3,4410.2,1.1359]
[1755393254209,0.3464,4411.2,4411.1,1.1255]
[1755393254510,0.1,4411.2,4411.1,1.1255]
[1755393255110,0.1,4411.2,4411.1,0.9756]
[1755393255313,1.3168,4411.2,4411.1,1.1255]
[1755393256005,0.7575,4411.2,4411.1,0.1717]
[1755393256205,1.5604,4411.2,4411.1,0.4204]
[1755393258307,1.1515,4410.9,4410.8,0.8951]
[1755393258512,0.6865,4411.2,4411.1,0.5766]
[1755393258815,1.0804,4411.2,4411.1,1.1371]
[1755393259020,1.3349,4411.2,4411.1,1.1371]
[1755393260217,0.1,4411.2,4411.1,1.1371]
[1755393266720,0.1,4411.2,4411.1,4.1371]
[1755393267414,0.2722,4411.2,4411.1,1.1371]
[1755393267615,1.161,4411.2,4411.1,1.1371]
[1755393267818,1.5976,4411.2,4411.1,0.4302]
[1755393268223,1.5976,4411.2,4411.1,0.6374]
[1755393268616,1.5976,4411.2,4411.1,0.8951]
[1755393268811,1.5976,4411.2,4411.1,1.1371]
[1755393269513,1.3349,4411.2,4411.0,24.1988]
[1755393269713,1.4976,4411.1,4411.0,24.3688]
[1755393270217,1.4976,4411.1,4411.0,24.8362]
[1755393271016,0.5865,4410.8,4410.7,0.4302]
[1755393271221,1.4976,4410.8,4410.7,0.6374]
[1755393271417,1.2349,4410.8,4410.7,1.044]
[1755393271614,0.4126,4410.8,4410.7,21.5626]
[1755393271813,1.2349,4410.8,4410.7,21.8629]
[1755393272013,1.4976,4410.8,4410.4,3.2078]
[1755393272221,1.4976,4410.5,4410.4,24.624]
[1755393272415,0.5865,4410.2,4410.1,0.2602]
[1755393272623,1.4976,4410.2,4410.1,21.2452]
[1755393272921,1.4976,4410.2,4410.1,21.4152]
[1755393273921,1.4976,4410.2,4410.1,20.985]
[1755393274118,1.4976,4410.0,4409.9,3.2078]
[1755393274422,1.4976,4410.0,4409.9,2.9418]
[1755393275223,0.5865,4409.5,4409.4,3.2078]
[1755393275523,1.2959,4409.1,4409.0,20.983]
[1755393277328,1.122,4409.0,4408.9,0.2602]
[1755393277625,1.2959,4409.0,4408.9,0.2602]
[1755393278020,1.2959,4409.0,4408.9,0.6879]
[1755393278221,1.2959,4409.0,4408.9,1.0491]
[1755393279628,1.2959,4409.0,4408.9,1.4685]
[1755393287642,0.8579,4409.0,4408.9,1.2147]
[1755393287843,1.0494,4409.0,4408.9,1.4599]
[1755393288143,1.295,4409.0,4408.9,1.4599]
[1755393288838,1.295,4409.0,4408.9,0.6879]
[1755393289139,1.2797,4408.7,4408.6,21.6631]
[1755393289343,1.2797,4408.7,4408.6,22.0227]
[1755393289739,1.2797,4408.7,4408.6,21.9083]
[1755393289939,1.2797,4408.7,4408.6,22.4431]
[1755393290544,1.0341,4408.7,4408.6,22.4431]
[1755393291846,0.7768,4408.7,4408.6,22.4431]
[1755393293250,1.2797,4408.7,4408.6,1.4651]
[1755393293451,1.2797,4408.7,4408.6,22.4401]
[1755393295152,3.2078,4409.3,4408.6,22.4401]
[1755393295153,0.7768,4409.2,4409.1,1.4651]
[1755393295650,1.0341,4409.2,4409.1,1.4651]
[1755393295852,1.2797,4409.2,4409.1,1.4651]
[1755393298952,1.2797,4409.2,4409.1,1.0447]
[1755393300348,1.2797,4409.2,4408.4,0.2586]
[1755393300553,1.2797,4408.6,4408.5,20.969]
[1755393300751,0.327,4408.3,4408.2,0.9549]
[1755393300952,0.327,4408.3,4408.2,1.2065]
[1755393301455,0.7768,4408.3,4408.2,1.4651]
[1755393301655,1.0341,4408.3,4408.2,1.2199]
[1755393301852,0.5843,4407.5,4407.4,0.6851]
[1755393302057,1.2797,4407.5,4407.4,22.0117]
[1755393302258,1.2797,4407.5,4407.4,22.4321]
[1755393303160,0.7768,4407.5,4407.4,22.4321]
[1755393303661,0.5853,4407.5,4407.4,22.4321]
[1755393304064,3.2078,4408.3,4407.8,0.5038]
[1755393304255,0.2456,4409.0,4407.9,20.967]
[1755393304455,1.2797,4408.9,4408.8,1.0447]
[1755393305456,3.2078,4409.1,4408.8,22.4291]
[1755393305659,0.2583,4409.6,4409.5,1.4651]
[1755393305859,0.5853,4410.0,4409.9,0.6017]
[1755393306161,1.0341,4410.0,4409.9,1.4651]
[1755393306357,1.2797,4410.0,4409.9,1.2199]
[1755393306555,0.5843,4410.0,4409.5,0.2452]
[1755393306759,3.2078,4410.1,4409.2,0.3596]
[1755393306760,1.2797,4409.8,4409.2,0.3596]
[1755393307056,1.2797,4409.3,4409.2,0.2586]
[1755393307458,1.2797,4409.3,4409.2,0.6851]
[1755393307659,1.2797,4409.3,4409.1,20.964]
[1755393307854,1.2797,4408.8,4408.7,0.7861]
[1755393308063,1.0341,4408.4,4408.3,22.1839]
[1755393308260,1.2797,4408.4,4408.3,22.4291]
[1755393308961,1.2797,4408.4,4408.3,21.3905]
[1755393309161,1.2797,4408.4,4408.3,22.0087]
[1755393309361,1.2797,4408.4,4407.8,0.2586]
[1755393309362,0.1615,4407.9,4407.8,0.2586]
[1755393309560,1.0341,4407.5,4407.4,22.4261]
[1755393310065,1.2797,4407.5,4407.4,22.0057]
[1755393310263,1.2797,4407.5,4407.4,22.1809]
[1755393310562,1.2797,4407.5,4407.4,22.4261]
[1755393311659,1.2797,4407.5,4407.4,0.6851]
[1755393311967,1.2797,4407.5,4406.6,3.2078]
[1755393311968,1.2797,4407.3,4407.2,0.4265]
[1755393312358,0.4498,4407.2,4406.7,0.8634]
[1755393312563,1.2797,4406.8,4406.7,1.0447]
[1755393312764,1.2797,4406.8,4406.7,1.2199]
[1755393313363,1.2797,4406.8,4406.7,1.4651]
[1755393314266,1.2797,4406.8,4406.7,1.2199]
[1755393314867,1.0341,4406.8,4406.7,1.4651]
[1755393317366,1.2968,4406.8,4406.7,1.4651]
[1755393317867,3.2078,4407.4,4406.7,1.4651]
[1755393318363,0.1647,4406.8,4406.7,0.8469]
[1755393318569,0.593,4406.8,4406.7,1.4537]
[1755393318764,0.593,4406.8,4406.7,1.2085]
[1755393318964,1.306,4406.8,4406.7,1.2085]
[1755393319165,1.306,4406.8,4406.7,1.4601]
[1755393320564,1.0433,4406.8,4406.7,0.2516]
[1755393320759,0.2627,4407.2,4406.6,24.1678]
[1755393320760,1.306,4406.7,4406.6,3.2078]
[1755393322164,0.1647,4406.7,4406.6,4.4076]
[1755393322360,1.306,4406.7,4406.6,3.2078]
[1755393322566,3.2078,4407.5,4406.6,4.4076]
[1755393322766,1.0433,4407.4,4407.3,0.7879]
[1755393322966,1.306,4407.4,4407.3,1.0302]
[1755393323271,1.306,4406.7,4406.6,3.2078]
[1755393323473,1.306,4406.7,4406.6,3.4501]
[1755393323966,1.306,4406.7,4406.6,3.8735]
[1755393324163,1.306,4406.7,4406.6,4.238]
[1755393324368,1.306,4406.7,4406.6,4.4076]
[1755393324570,1.306,4406.7,4406.6,4.6592]
[1755393325074,1.306,4406.7,4406.6,4.4076]
[1755393325266,0.593,4406.7,4406.6,4.86116]
[1755393325471,0.593,4406.7,4406.6,4.6592]
[1755393326272,1.306,4406.7,4406.6,4.6592]
[1755393327575,1.306,4406.7,4406.6,4.4076]
[1755393327979,1.306,4406.7,4406.6,4.6592]
[1755393328474,1.0433,4406.7,4406.6,4.6592]
[1755393328677,1.306,4406.7,4406.6,4.6592]
[1755393329677,0.5936,4406.7,4406.2,0.2423]
[1755393329975,3.2078,4407.0,4406.0,4.0524]
[1755393329976,0.7857,4406.1,4406.0,4.0524]
[1755393330377,0.593,4406.1,4406.0,4.6592]
[1755393331479,0.1647,4406.1,4406.0,4.4076]
[1755393331675,0.1713,4406.2,4406.1,1.1998]
[1755393331978,0.593,4406.2,4406.1,1.4514]
[1755393332368,1.0433,4406.9,4406.8,1.4514]
[1755393332576,3.2078,4407.0,4406.9,0.8301]
[1755393332775,3.2078,4407.0,4406.9,1.4514]
[1755393333380,3.6295,4407.0,4406.9,1.4514]
[1755393333579,3.8008,4407.0,4406.9,1.4514]
[1755393333881,3.9935,4407.0,4406.9,1.4514]
[1755393334085,3.8008,4407.0,4406.9,1.4514]
[1755393334783,4.5138,4407.0,4406.9,1.0302]
[1755393334984,1.306,4406.7,4406.6,1.0302]
[1755393335183,1.306,4406.7,4406.6,1.1998]
[1755393335385,3.2078,4407.0,4406.0,3.2078]
[1755393335386,0.5936,4406.4,4406.3,0.593]
[1755393335587,1.306,4406.4,4406.3,0.9575]
[1755393335788,0.336,4406.2,4406.1,0.4212]
[1755393336083,0.5936,4404.8,4404.7,0.8353]
[1755393336385,1.4998,4404.8,4404.7,0.8353]
[1755393336585,1.4998,4404.8,4404.7,1.0869]
[1755393338088,1.4998,4404.8,4404.7,1.4514]
[1755393340085,1.4998,4404.8,4404.7,1.1998]
[1755393340585,0.2627,4405.2,4404.2,1.4514]
[1755393340788,1.4998,4405.2,4405.1,1.1998]
[1755393340985,1.4998,4405.2,4405.1,1.4514]
[1755393341391,1.4998,4405.2,4405.1,0.4234]
[1755393342093,1.4998,4405.2,4405.1,1.4514]
[1755393342287,0.257,4405.1,4405.0,0.4234]
[1755393342493,1.4998,4405.1,4405.0,0.4234]
[1755393342692,0.8563,4405.1,4404.7,3.2078]
[1755393342898,0.593,4405.0,4404.9,0.1666]
[1755393343195,1.4998,4405.0,4404.9,0.4234]
[1755393343394,1.4998,4405.0,4404.9,1.1998]
[1755393343696,0.8506,4405.0,4404.9,1.4514]
[1755393344195,1.4998,4405.0,4404.9,1.4514]
[1755393345193,1.4998,4405.0,4404.9,0.4234]
[1755393345399,0.5936,4405.0,4404.5,0.6068]
[1755393345600,3.2078,4405.3,4404.5,0.6068]
[1755393345797,1.4998,4404.6,4404.5,1.4514]
[1755393346194,0.257,4404.5,4404.4,0.4234]
[1755393346400,1.4998,4404.5,4404.4,0.4234]
[1755393346594,1.4998,4404.5,4404.4,1.1998]
[1755393346796,1.4998,4404.5,4404.4,1.4514]
[1755393347603,0.336,4404.5,4404.4,1.4514]
[1755393347901,1.4688,4404.5,4404.4,1.4514]
[1755393348098,0.6255,4404.9,4404.4,1.4514]
[1755393348295,0.8477,4404.8,4404.7,1.4731]
[1755393348494,0.8477,4404.8,4404.7,0.4201]
[1755393348903,1.4732,4404.8,4404.7,0.4201]
[1755393349206,4.681,4404.8,4404.7,0.4201]
[1755393350402,4.681,4404.8,4404.7,1.4731]
[1755393352003,4.681,4404.8,4404.7,1.2188]
[1755393352200,4.681,4404.8,4404.7,0.4201]
[1755393352706,4.681,4404.8,4404.7,0.7862]
[1755393353005,4.681,4404.8,4404.7,0.4201]
[1755393353505,4.681,4404.8,4404.7,1.4731]
[1755393353804,4.681,4404.8,4404.0,0.45382]
[1755393353999,0.2432,4404.7,4403.9,0.2543]
[1755393354200,1.0909,4404.5,4404.4,0.5932]
[1755393354503,1.4732,4404.5,4404.4,1.107]
[1755393354701,1.4732,4404.5,4404.4,1.4731]
[1755393355096,3.2078,4404.8,4404.7,0.1766]
[1755393355303,3.7899,4405.3,4405.2,0.5932]
[1755393355501,3.7899,4405.3,4405.2,1.2188]
[1755393355808,3.7899,4405.3,4405.0,0.3661]
[1755393355999,0.5821,4405.1,4405.0,0.5427]
[1755393356201,1.4732,4405.1,4405.0,0.5427]
[1755393356603,1.4732,4405.1,4404.6,0.6256]
[1755393356604,0.5821,4405.1,4404.6,0.6256]
[1755393356804,0.5821,4404.7,4404.6,1.0457]
[1755393357107,1.4732,4404.7,4404.6,1.0457]
[1755393357819,21.1250614,4406.8,4404.7,0.6256]
[1755393357820,0.2656,4405.4,4404.7,0.6256]
[1755393358006,3.2078,4406.2,4405.4,0.6256]
[1755393358204,0.8911,4406.1,4405.0,0.6256]
[1755393358508,0.5821,4406.1,4404.9,0.2595]
[1755393358715,0.5821,4405.0,4404.9,0.6796]
[1755393359010,1.4732,4405.0,4404.9,0.4201]
[1755393359211,1.4732,4405.0,4404.6,0.6256]
[1755393359407,0.5821,4404.7,4403.9,0.3661]
[1755393359612,1.4732,4404.6,4404.5,0.4201]
[1755393360303,0.5821,4404.0,4403.9,0.9593]
[1755393360510,1.4732,4404.0,4403.9,1.4731]
[1755393361410,0.8911,4404.4,4403.9,1.4731]
[1755393361711,0.5088,4404.2,4403.3,3.2078]
[1755393361918,0.5821,4403.7,4403.1,0.10219956]
[1755393362405,1.4732,4403.6,4403.5,1.4731]
[1755393363206,1.4732,4403.6,4403.1,0.10219956]
[1755393363207,0.5821,4403.6,4403.1,0.98209956]
[1755393363411,1.4732,4403.2,4403.1,0.10219956]
[1755393364111,1.4732,4403.2,4403.1,0.52229956]
[1755393364608,1.4732,4403.2,4403.1,1.32099956]
[1755393364806,0.1733,4403.3,4403.2,0.5138]
[1755393365013,0.1733,4403.3,4403.2,1.4731]
[1755393365315,1.4732,4403.3,4403.2,1.2188]
[1755393365511,1.4732,4403.3,4403.2,1.4731]
[1755393367010,1.4732,4403.3,4403.2,0.4201]
[1755393367215,1.4732,4403.3,4403.2,1.2188]
[1755393367718,1.4732,4403.3,4403.2,1.4731]
[1755393368012,3.2078,4403.6,4403.5,0.5932]
[1755393368205,0.3823,4404.2,4403.3,3.2078]
[1755393368411,1.4732,4404.2,4404.1,1.4731]
[1755393368607,1.4732,4404.2,4404.1,0.4361]
[1755393368914,0.5821,4403.5,4403.4,1.4731]
[1755393369215,0.3404,4403.5,4403.4,1.4731]
[1755393370712,3.6228,4404.3,4404.2,0.4201]
[1755393370917,4.681,4404.3,4404.2,1.4731]
[1755393371721,4.681,4404.3,4404.2,1.2188]
[1755393371921,3.8138,4404.3,4404.2,1.4731]
[1755393372314,4.0555,4404.3,4404.2,1.4731]
[1755393372717,4.2987,4404.3,4404.2,1.4731]
[1755393372918,1.4732,4404.3,4404.2,1.4731]
[1755393373113,3.2078,4404.8,4404.2,1.4731]
[1755393373420,4.681,4404.8,4404.7,1.4731]
[1755393375013,1.4732,4404.8,4404.7,1.4731]
[1755393375214,0.22927198,4407.4,4404.7,1.4731]
[1755393375215,0.5088,4406.1,4406.0,0.4201]
[1755393375517,34.29699401,4407.8,4404.1,32.697]
[1755393375518,0.1733,4405.7,4405.6,0.6904]
[1755393375720,1.4732,4405.7,4405.6,1.4731]
[1755393376222,0.8477,4405.7,4405.6,1.4731]
[1755393376420,0.5821,4405.7,4405.0,0.6256]
[1755393376621,0.5821,4405.1,4405.0,1.2188]
[1755393376924,1.4732,4405.1,4405.0,1.0457]
[1755393377132,1.4732,4405.1,4405.0,0.4201]
[1755393377326,1.4732,4405.1,4404.7,0.6204]
[1755393377525,0.6083,4404.8,4404.7,1.4817]
[1755393377720,1.4936,4404.8,4404.7,1.4817]
[1755393377919,1.4936,4404.8,4404.7,0.597]
[1755393378118,1.4936,4404.8,4404.7,1.4853]
[1755393378515,3.2078,4405.5,4404.7,1.4853]
[1755393378720,4.3352,4405.5,4405.4,1.4853]
[1755393379122,0.8853,4405.4,4404.6,4.0961]
[1755393379328,0.8853,4405.3,4404.6,4.0961]
[1755393379822,0.4396,4405.3,4405.2,1.4853]
[1755393380026,1.4936,4405.3,4405.2,1.4853]
[1755393380228,1.4936,4405.3,4404.6,3.2078]
[1755393380229,0.6083,4405.3,4404.8,0.645]
[1755393380424,0.6083,4404.9,4404.8,1.242]
[1755393380725,1.4936,4404.9,4404.8,1.242]
[1755393381129,0.8729,4404.9,4404.8,1.4853]
[1755393381326,0.3511,4404.9,4404.8,1.4853]
[1755393381526,3.2078,4405.5,4404.8,0.597]
[1755393381723,4.0807,4405.5,4405.4,0.597]
[1755393382028,4.0807,4405.5,4405.4,1.4853]
[1755393382222,3.2078,4405.5,4405.4,1.4853]
[1755393383233,4.7014,4405.5,4405.4,1.4853]
[1755393385829,4.0931,4406.0,4405.4,1.4853]
[1755393386030,4.7014,4406.0,4405.9,1.4853]
[1755393386232,8.769,4408.2,4405.9,1.4853]
[1755393386233,0.2646,4406.6,4405.9,1.4853]
[1755393386527,3.574,4406.7,4405.6,3.2078]
[1755393386528,1.4936,4406.1,4406.0,1.4853]
[1755393387131,0.4396,4406.1,4406.0,1.4853]
[1755393387432,1.2391,4406.7,4406.6,1.242]
[1755393387634,1.4936,4406.7,4406.6,0.4238]
[1755393388430,0.8853,4407.7,4407.1,0.8883]
[1755393388630,0.6083,4407.7,4407.1,0.8883]
[1755393388835,1.4936,4407.2,4407.1,1.4853]
[1755393389329,3.2078,4407.8,4407.1,1.4853]
[1755393389530,3.4623,4407.8,4407.7,0.597]
[1755393389739,3.903,4407.8,4407.7,1.4853]
[1755393389936,3.2078,4407.8,4407.7,1.4853]
[1755393390231,0.8853,4408.1,4407.8,0.8883]
[1755393390426,1.4936,4407.9,4407.8,1.4853]
[1755393391337,0.6157,4408.2,4408.1,0.597]
[1755393391538,0.2646,4408.6,4408.1,1.4853]
[1755393391737,0.2545,4408.7,4407.7,2.6272]
[1755393391940,0.2646,4407.7,4404.9,0.45373]
[1755393392136,3.2078,4407.8,4404.9,0.45373]
[1755393392137,0.2646,4406.7,4405.1,3.2078]
[1755393392328,0.2646,4406.7,4405.6,3.2078]
[1755393392533,0.2646,4406.7,4404.9,3.2078]
[1755393392738,3.2078,4406.1,4405.0,0.45372]
[1755393393831,3.2078,4406.1,4405.1,0.7617]
[1755393394033,3.2078,4406.1,4405.0,0.7617]
[1755393394336,3.2078,4406.1,4405.3,0.2643]
[1755393394337,0.2646,4406.0,4405.3,0.2643]
[1755393396339,3.2078,4405.6,4405.3,0.2643]
[1755393396533,3.2078,4405.6,4405.1,0.1167]
[1755393396734,0.2646,4405.5,4405.2,0.2643]
[1755393396930,0.2646,4405.4,4405.3,0.1167]
[1755393397438,0.2646,4405.4,4405.3,0.381]
[1755393397631,0.2646,4405.4,4405.3,0.7617]
[1755393397828,0.2646,4405.4,4405.3,1.3587]
[1755393398640,3.2078,4406.1,4405.5,0.9826]
[1755393398841,3.6474,4406.1,4406.0,0.2643]
[1755393403244,3.87091938,4406.1,4406.0,0.2643]
[1755393405437,3.87091938,4406.1,4406.0,1.0688]
[1755393405642,3.87091938,4406.1,4406.0,0.6881]
[1755393405843,3.87091938,4406.1,4406.0,1.0688]
[1755393406838,3.87091938,4406.1,4406.0,1.3587]
[1755393407242,3.87091938,4406.1,4406.0,0.2643]
[1755393407839,3.87091938,4406.1,4405.7,0.00404242]
[1755393408040,0.4148,4405.8,4405.7,0.26974242]
[1755393408234,0.63831938,4405.8,4405.7,0.26974242]
[1755393408640,0.63831938,4405.8,4405.7,0.43074242]
[1755393409743,3.2078,4408.3,4407.1,0.3819]
[1755393409949,0.1695,4407.4,4407.3,0.5928]
[1755393410248,0.3924,4407.4,4406.3,3.2078]
[1755393410441,4.1031,4407.1,4407.0,1.0631]
[1755393413050,4.1031,4407.1,4407.0,1.3567]
[1755393413250,3.6226,4407.1,4407.0,1.3567]
[1755393413456,4.1031,4407.1,4407.0,1.2404]
[1755393413648,4.1031,4407.1,4407.0,1.3567]
[1755393413847,0.8953,4406.5,4406.4,0.4267]
[1755393414042,4.1031,4406.5,4406.4,0.6812]
[1755393414246,4.1031,4406.5,4405.7,0.16504242]
[1755393414247,3.6349,4406.5,4405.7,0.16504242]
[1755393414447,0.8953,4405.8,4405.7,0.80144242]
[1755393414948,0.8953,4405.8,4405.7,1.24444242]
[1755393415149,0.8953,4405.8,4405.7,1.36074242]
[1755393415551,0.4148,4405.8,4405.7,1.36074242]
[1755393416547,0.6724,4405.8,4405.7,1.24444242]
[1755393416751,0.8953,4405.8,4405.7,1.06714242]
[1755393416954,0.8953,4405.8,4405.7,0.68524242]
[1755393418351,0.8953,4405.8,4404.6,0.45376]
[1755393418352,3.1695,4405.8,4403.6,3.2198761]
[1755393418551,0.4271,4404.4,4403.9,3.2078]
[1755393418751,0.2229,4403.9,4403.4,0.2657]
[1755393418950,0.4682,4403.3,4403.1,0.10219956]
[1755393419151,0.4682,4403.2,4403.1,0.48409956]
[1755393419346,0.4682,4403.2,4403.1,0.74979956]
[1755393419552,0.2453,4403.2,4403.1,0.87009956]
[1755393420250,0.2453,4403.2,4403.1,0.74979956]
[1755393420650,0.2453,4403.2,4403.1,0.87009956]
[1755393421658,3.2078,4403.7,4403.4,0.1203]
[1755393421960,0.68889334,4403.6,4403.4,0.6476]
[1755393422260,0.4682,4403.5,4403.4,0.3819]
[1755393422556,0.2229,4403.5,4403.1,0.10219956]
[1755393422852,0.4271,4403.3,4403.2,0.9021]
[1755393423057,4.1031,4403.3,4403.2,1.0631]
[1755393424255,4.1031,4403.3,4403.2,0.6812]
[1755393425761,0.8953,4403.2,4403.1,0.52889956]
[1755393425957,0.8953,4403.2,4403.1,1.34259956]
[1755393426162,0.8953,4403.2,4403.1,1.46289956]
[1755393426456,0.8953,4403.2,4403.1,1.34259956]
[1755393427054,0.8953,4403.2,4403.1,4.55039956]
[1755393427350,0.2453,4405.5,4403.2,0.7679]
[1755393427550,0.2453,4406.0,4405.4,0.7679]
[1755393427760,3.2078,4406.6,4405.8,0.7679]
[1755393428055,3.2078,4406.6,4404.1,32.695]